bitfinex/quotes_ETHUSD_20241123
["timestamp","ask_amount","ask_price","bid_price","bid_amount"]
[1732368691443,5.19591128,3415.5,3415.4,4.83934171]
[1732368691648,5.19591128,3415.5,3415.4,8.11585636]
[1732368691649,3.0316373,3415.5,3415.4,8.11585636]
[1732368691956,3.0316373,3415.5,3415.4,8.33291625]
[1732368693107,2.30140018,3415.5,3415.4,8.33291625]
[1732368693977,2.3464262,3417.3,3416.5,0.1]
[1732368694175,2.3464262,3417.3,3416.6,3.17338208]
[1732368694176,0.39738262,3417.2,3416.6,3.17338208]
[1732368694368,0.39738262,3417.2,3416.7,0.21705989]
[1732368694568,2.3464262,3416.9,3416.8,0.21705989]
[1732368694768,10.3268462,3416.9,3416.8,0.21705989]
[1732368694970,10.3268462,3416.9,3416.6,2.95632219]
[1732368694971,3.55,3416.8,3416.6,2.95632219]
[1732368695283,4.43101,3416.3,3415.7,2.95632219]
[1732368695475,2.3464262,3415.7,3414.8,2.95632219]
[1732368695671,1.5038,3415.6,3414.9,2.95632219]
[1732368695965,7.3571,3415.6,3415.0,2.95632219]
[1732368696275,0.38502262,3415.5,3415.0,2.95632219]
[1732368696685,5.8533,3415.4,3415.0,2.95632219]
[1732368698064,5.8533,3415.4,3415.1,0.1]
[1732368698677,5.8533,3415.4,3415.0,2.95632219]
[1732368699017,0.58533,3415.3,3415.0,2.95632219]
[1732368699381,5.8533,3415.2,3415.0,2.95632219]
[1732368699986,5.8533,3415.2,3415.0,2.92557055]
[1732368700197,1.5038,3415.1,3415.0,2.92557055]
[1732368700509,7.3571,3415.1,3414.5,2.92557055]
[1732368700701,0.38502262,3415.0,3414.5,2.92557055]
[1732368701018,0.38502262,3415.0,3413.9,1.68938241]
[1732368701019,5.8533,3414.9,3414.6,2.92557055]
[1732368701234,6.62751226,3414.9,3414.6,2.92557055]
[1732368701892,6.62751226,3414.9,3414.1,0.1]
[1732368702708,7.22553288,3414.9,3414.1,0.1]
[1732368702891,7.22553288,3414.9,3414.2,2.92557055]
[1732368703086,7.22553288,3414.9,3414.3,2.92557055]
[1732368703326,0.63388762,3414.8,3414.3,2.92557055]
[1732368703532,0.63388762,3414.8,3414.1,0.1]
[1732368703533,0.63388762,3414.8,3414.2,2.92557055]
[1732368703752,5.8533,3414.7,3414.2,2.92557055]
[1732368703951,6.296401,3414.7,3414.2,2.92557055]
[1732368706645,6.296401,3414.7,3414.1,0.1]
[1732368707629,6.296401,3414.7,3413.9,0.1]
[1732368707977,0.55,3414.4,3413.6,2.92557055]
[1732368708191,0.55,3414.4,3413.0,1.6589]
[1732368708192,2.3464262,3414.1,3413.5,2.92557055]
[1732368708452,0.23464262,3414.0,3413.5,2.92557055]
[1732368708657,6.08794262,3414.0,3413.5,2.92557055]
[1732368709364,6.08794262,3414.0,3412.1,0.02929595]
[1732368709365,0.55,3413.5,3412.2,0.1]
[1732368709548,0.55,3413.5,3412.3,2.92557055]
[1732368709549,2.3464262,3413.0,3412.3,2.92557055]
[1732368709933,0.55,3412.9,3412.0,0.1]
[1732368710136,1.5582,3412.7,3412.0,0.1]
[1732368710359,1.5582,3412.7,3412.0,3.02557055]
[1732368710525,5.8533,3412.6,3412.0,3.02557055]
[1732368711964,1.12122979,3412.5,3411.7,2.92557055]
[1732368712162,1.12122979,3412.5,3411.8,0.1]
[1732368712163,1.34134405,3412.5,3411.8,0.1]
[1732368712468,2.8533,3412.4,3411.8,0.1]
[1732368712652,2.8533,3412.4,3411.7,2.92557055]
[1732368712837,2.8533,3412.4,3411.8,0.1]
[1732368713366,2.8533,3412.4,3412.2,0.1]
[1732368713761,2.8533,3412.4,3412.0,0.1]
[1732368714266,2.8533,3412.4,3412.3,0.1]
[1732368715522,2.8533,3412.4,3412.1,0.1]
[1732368716668,2.8533,3412.4,3412.3,0.1]
[1732368716965,2.8533,3412.4,3412.3,4.58747055]
[1732368717164,2.8533,3412.4,3412.3,5.04621761]
[1732368718265,2.8533,3412.4,3412.3,3.02557055]
[1732368724377,2.8533,3412.4,3412.3,4.65227055]
[1732368726217,2.8533,3412.4,3412.3,3.02557055]
[1732368730394,2.8533,3412.4,3412.3,3.24343419]
[1732368731015,2.8533,3412.4,3412.3,4.87013419]
[1732368731227,2.9,3414.6,3413.9,0.1]
[1732368731228,1.5707,3414.0,3413.9,0.1]
[1732368731434,0.59185749,3414.2,3413.9,0.1]
[1732368731587,0.59185749,3414.2,3413.7,0.1]
[1732368731996,0.59185749,3414.2,3413.2,0.10156158]
[1732368731997,0.59185749,3414.2,3413.9,0.1]
[1732368732201,0.52464262,3414.5,3413.9,0.1]
[1732368732946,2.92013892,3414.3,3413.3,0.1]
[1732368733090,2.1207,3414.2,3413.3,0.1]
[1732368733492,0.55,3413.8,3413.2,0.07227055]
[1732368733713,1.5707,3413.7,3412.9,0.17227055]
[1732368734115,2.3464262,3413.9,3413.4,0.1]
[1732368734301,1.5707,3414.0,3413.4,0.1]
[1732368734505,1.78514127,3414.0,3413.4,0.1]
[1732368735515,1.5707,3414.0,3413.8,0.1]
[1732368735719,1.5707,3414.0,3413.6,0.1]
[1732368736412,1.5707,3414.0,3413.5,0.1]
[1732368736604,1.5707,3414.0,3413.6,0.07227055]
[1732368736919,1.78514127,3414.0,3413.6,0.07227055]
[1732368737107,0.57371272,3414.3,3413.7,0.1]
[1732368737513,0.57371272,3414.3,3413.6,0.07227055]
[1732368739640,0.57371272,3414.3,3413.5,0.1]
[1732368741022,0.57371272,3414.3,3413.0,0.1]
[1732368741023,2.3464262,3414.0,3413.0,0.1]
[1732368741228,2.3464262,3413.6,3412.8,0.17227055]
[1732368741433,2.1207,3413.9,3413.0,0.1]
[1732368741633,1.5707,3413.9,3413.3,0.1]
[1732368743771,2.14441272,3414.3,3413.5,0.1]
[1732368744074,2.49415996,3414.3,3413.5,0.1]
[1732368745631,2.49415996,3414.3,3413.5,0.17227055]
[1732368749861,2.3464262,3413.9,3413.5,0.07227055]
[1732368750451,5.8584,3413.8,3413.5,0.07227055]
[1732368751440,1.5962,3413.6,3412.9,0.1]
[1732368752147,1.5962,3413.6,3412.7,0.1]
[1732368752349,1.96445615,3413.3,3412.5,0.07227055]
[1732368752565,0.19644562,3413.2,3412.4,0.07227055]
[1732368752764,0.55,3413.1,3412.4,0.07227055]
[1732368752954,1.5962,3412.8,3412.4,0.07227055]
[1732368753942,5.8584,3412.7,3412.4,0.07227055]
[1732368755184,5.8584,3412.7,3412.1,0.1]
[1732368757454,5.8584,3412.7,3412.0,0.07227055]
[1732368757455,5.8584,3412.7,3412.3,0.1]
[1732368758065,5.8584,3412.7,3412.5,0.1]
[1732368760402,5.8584,3412.7,3412.1,0.17227055]
[1732368761394,6.50413057,3412.7,3412.1,0.17227055]
[1732368762503,5.8584,3412.7,3412.1,0.17227055]
[1732368763186,2.34991884,3412.4,3411.9,0.07227055]
[1732368763394,2.34991884,3412.0,3411.3,0.1]
[1732368763550,2.34991884,3412.0,3411.2,0.07227055]
[1732368763762,3.05627446,3412.0,3411.2,0.07227055]
[1732368763965,3.05627446,3412.0,3411.3,0.1]
[1732368764159,3.05627446,3412.0,3411.2,0.07227055]
[1732368764593,3.0,3411.9,3411.3,0.1]
[1732368764901,3.60562745,3411.9,3411.3,0.1]
[1732368765200,5.8584,3411.8,3411.3,0.1]
[1732368765705,5.8584,3411.8,3411.6,0.1]
[1732368766305,1.5962,3412.3,3411.6,0.1]
[1732368766458,1.5962,3412.3,3411.6,0.26673]
[1732368767083,1.5962,3412.3,3411.8,0.1]
[1732368767260,2.34991884,3412.2,3411.6,0.1]
[1732368767465,0.4537017,3412.1,3411.6,0.1]
[1732368767703,2.34991884,3412.2,3411.4,0.1]
[1732368769314,1.5962,3412.3,3411.8,0.1]
[1732368770403,0.59089818,3412.4,3411.8,0.1]
[1732368772803,0.59089818,3412.4,3411.8,0.17227055]
[1732368774898,0.59089818,3412.4,3411.9,1.5673]
[1732368775156,0.59089818,3412.4,3411.9,1.63957055]
[1732368775502,0.59089818,3412.4,3412.2,0.1]
[1732368775727,6.98641884,3413.0,3412.2,0.1]
[1732368775900,0.53499188,3412.9,3412.2,0.1]
[1732368776103,3.98641884,3413.0,3412.5,0.1]
[1732368776301,0.59427715,3412.6,3412.5,0.1]
[1732368777151,0.59427715,3412.6,3412.3,0.1]
[1732368777850,0.59427715,3412.6,3412.5,0.1]
[1732368778599,0.1,3414.2,3412.5,0.1]
[1732368778600,1.96553568,3413.9,3412.5,1.73957055]
[1732368778864,1.96553568,3413.9,3413.2,0.1]
[1732368779354,1.96553568,3413.9,3413.4,0.1]
[1732368779557,1.96553568,3413.9,3413.2,1.5673]
[1732368779727,0.36020357,3413.8,3413.1,0.1]
[1732368779927,0.36020357,3413.8,3412.9,1.6673]
[1732368780132,0.58105799,3413.5,3412.9,1.6673]
[1732368780719,3.36020357,3413.8,3412.9,1.6673]
[1732368780720,0.36020357,3413.8,3412.9,1.6673]
[1732368780923,0.69622393,3413.7,3412.9,1.6673]
[1732368781624,0.69622393,3413.7,3413.1,0.1]
[1732368781829,3.0,3413.9,3413.5,0.1]
[1732368782063,1.6365,3414.0,3413.5,0.1]
[1732368782358,0.16365,3413.9,3413.2,0.07227055]
[1732368782526,0.16365,3413.9,3413.4,0.1]
[1732368784026,2.20717186,3414.0,3413.4,0.1]
[1732368784333,2.20717186,3414.0,3413.8,0.1]
[1732368784334,0.57067186,3414.0,3413.8,0.1]
[1732368784538,0.57067186,3414.0,3413.6,0.1]
[1732368784764,0.57067186,3414.0,3413.5,0.1]
[1732368784966,0.57067186,3414.0,3413.8,0.1]
[1732368785266,1.96553568,3414.3,3413.8,0.1]
[1732368785424,0.57710296,3414.1,3413.8,0.1]
[1732368786526,1.96553568,3414.3,3413.8,0.1]
[1732368786775,4.96553568,3414.7,3414.0,0.1]
[1732368787063,4.96553568,3414.7,3414.0,0.17227055]
[1732368787263,3.65589357,3414.6,3414.0,0.07227055]
[1732368787477,3.65589357,3414.6,3414.1,0.1]
[1732368787824,3.65589357,3414.6,3413.7,1.42747055]
[1732368788054,0.5918758,3414.2,3413.7,1.42747055]
[1732368789836,0.5918758,3414.2,3412.7,0.02928953]
[1732368790040,0.5918758,3414.2,3412.8,8.85]
[1732368790370,0.5918758,3414.2,3412.9,0.02929443]
[1732368790930,0.5918758,3414.2,3413.0,1.5552]
[1732368791172,0.91976524,3414.2,3413.0,2.59864944]
[1732368791661,0.91976524,3414.2,3413.2,1.5552]
[1732368791862,0.5918758,3414.2,3413.3,0.02929142]
[1732368792170,1.96553568,3413.8,3413.2,1.5552]
[1732368792336,1.5934,3414.1,3413.2,1.5552]
[1732368792547,1.84914115,3414.1,3413.2,1.5552]
[1732368793854,1.84914115,3414.1,3413.3,8.85]
[1732368794056,1.96553568,3413.5,3413.3,8.85]
[1732368794258,1.96553568,3413.9,3413.3,8.85]
[1732368794477,1.84914115,3414.1,3413.3,8.85]
[1732368794478,0.44065526,3414.0,3413.3,8.85]
[1732368795343,1.96553568,3413.7,3413.3,8.85]
[1732368795888,1.5533,3413.6,3413.3,8.85]
[1732368796039,0.35188357,3413.5,3413.3,8.85]
[1732368797048,0.35188357,3413.5,3412.6,8.85]
[1732368797243,1.96553568,3413.3,3412.2,1.6415]
[1732368798688,1.96553568,3413.3,3412.3,0.02930397]
[1732368799039,0.57696298,3413.4,3412.5,0.55]
[1732368799280,0.57696298,3413.4,3412.7,1.6415]
[1732368799545,0.57696298,3413.4,3412.8,0.02929554]
[1732368799935,0.57696298,3413.4,3412.9,1.6415]
[1732368800133,1.96553568,3414.6,3413.0,0.02929337]
[1732368800336,1.74985357,3414.5,3413.2,1.6415]
[1732368800634,1.74985357,3414.5,3413.3,8.87929121]
[1732368800871,1.74985357,3414.5,3413.3,8.85]
[1732368801070,0.58007366,3413.9,3413.4,8.85]
[1732368801253,0.58007366,3413.9,3413.5,8.87929098]
[1732368801461,0.58007366,3413.9,3413.6,0.8879291]
[1732368802778,0.58007366,3413.9,3413.6,0.91722008]
[1732368802989,0.58007366,3413.9,3413.6,0.8879291]
[1732368803292,1.5533,3414.9,3413.7,1.67079073]
[1732368803597,1.5533,3414.9,3413.8,8.85]
[1732368803750,1.5533,3414.9,3413.9,0.02928434]
[1732368804261,1.6442,3415.4,3414.1,1.6127]
[1732368804555,1.6442,3415.4,3414.2,9.89919843]
[1732368804881,0.57983979,3414.7,3414.2,8.85]
[1732368805126,1.6442,3415.4,3414.2,8.85]
[1732368805295,1.96553568,3416.1,3414.4,1.6127]
[1732368805590,0.57814418,3415.4,3414.5,9.09729232]
[1732368805782,0.57814418,3415.4,3414.6,8.85]
[1732368806085,0.57814418,3415.4,3414.7,8.87927897]
[1732368806281,0.57814418,3415.4,3414.8,10.4627]
[1732368806497,0.57814418,3415.4,3414.9,0.02927788]
[1732368806662,1.6442,3416.3,3415.0,1.83059889]
[1732368806999,0.5709394,3415.6,3415.1,8.87927555]
[1732368807204,0.5709394,3415.6,3415.3,1.6127]
[1732368807405,0.5709394,3415.6,3415.3,1.64197387]
[1732368807564,0.36097357,3416.3,3415.3,1.64197387]
[1732368807762,0.36097357,3416.3,3415.4,8.87927228]
[1732368807963,0.57613985,3415.8,3415.4,8.85]
[1732368808471,0.57613985,3415.8,3415.5,8.88383754]
[1732368808672,1.6442,3416.7,3415.6,0.01740929]
[1732368808908,0.58321013,3415.9,3415.6,0.04667798]
[1732368809067,0.58321013,3415.9,3415.7,0.012051]
[1732368809267,0.58321013,3415.9,3415.7,1.0578831]
[1732368809589,1.6442,3416.7,3415.8,0.0102591]
[1732368810614,1.96553568,3416.1,3415.8,0.0102591]
[1732368811167,2.54299079,3416.1,3415.8,0.0102591]
[1732368811972,1.6442,3416.0,3415.4,8.85]
[1732368812171,1.6442,3416.0,3414.0,0.2904568]
[1732368812172,1.96553568,3415.7,3415.5,8.85]
[1732368813122,1.96553568,3415.7,3415.1,8.85]
[1732368813309,1.96553568,3415.2,3415.1,8.85]
[1732368813464,1.96553568,3415.2,3414.7,8.85]
[1732368814768,1.96553568,3415.2,3414.3,1.6127]
[1732368814971,1.96553568,3415.2,3414.4,8.85]
[1732368815208,4.96553568,3415.2,3414.4,8.85]
[1732368815491,1.96553568,3414.8,3414.5,0.00498738]
[1732368815806,1.96553568,3414.8,3414.4,8.85]
[1732368816171,4.6442,3414.7,3414.0,8.85]
[1732368816416,1.96553568,3414.4,3413.7,8.85]
[1732368816619,2.62650925,3414.4,3413.7,8.85]
[1732368816823,1.96553568,3414.4,3413.8,8.85]
[1732368817122,1.96553568,3414.4,3413.7,8.85]
[1732368817826,1.96553568,3414.4,3413.8,8.85]
[1732368817984,1.96553568,3414.4,3413.4,8.85]
[1732368817985,1.6442,3413.9,3413.4,8.85]
[1732368818178,1.6442,3413.9,3413.0,1.6127]
[1732368818383,1.6442,3413.9,3413.1,8.85]
[1732368818984,5.34873578,3413.8,3413.1,8.85]
[1732368819179,3.69929358,3413.7,3413.1,8.85]
[1732368820420,5.34873578,3413.8,3413.1,8.85]
[1732368821822,0.59091067,3413.6,3413.1,8.85]
[1732368821991,1.6442,3413.9,3413.1,8.85]
[1732368823784,1.6442,3413.9,3413.2,8.85]
[1732368824232,2.21599435,3413.9,3413.2,8.85]
[1732368824939,1.96599435,3413.9,3413.2,8.85]
[1732368827405,1.96599435,3413.9,3413.3,8.85]
[1732368829847,1.96599435,3413.9,3412.8,8.85]
[1732368830152,1.96599435,3413.9,3412.8,9.027397]
[1732368830351,1.6256,3414.4,3413.0,1.5041]
[1732368830515,1.6256,3414.4,3413.1,1.14037031]
[1732368830953,1.6256,3414.8,3413.3,1.5041]
[1732368831107,2.02303358,3414.8,3413.4,9.11444703]
[1732368832064,2.02303358,3414.8,3413.5,0.02929103]
[1732368832268,1.6256,3414.8,3413.5,0.02929103]
[1732368833370,0.58421473,3414.6,3413.5,0.02929103]
[1732368834165,1.6256,3414.5,3413.5,0.02929103]
[1732368834338,1.6256,3414.5,3413.4,9.11444703]
[1732368834542,1.6256,3414.5,3413.5,0.02929091]
[1732368834872,1.6256,3414.5,3413.6,1.06478379]
[1732368835931,1.6256,3414.5,3413.7,8.85]
[1732368837266,0.58421473,3414.6,3413.7,8.85]
[1732368837267,2.34873578,3414.2,3413.7,8.85]
[1732368837566,1.5357,3414.1,3413.7,8.85]
[1732368837743,0.38844358,3414.0,3413.0,8.85]
[1732368837926,0.38844358,3414.0,3412.9,8.85]
[1732368838131,0.38844358,3414.0,3413.0,0.885]
[1732368839072,4.5357,3414.1,3413.0,0.885]
[1732368839630,4.5357,3414.1,3412.7,8.85]
[1732368839868,4.5357,3414.1,3412.8,8.85]
[1732368840184,2.34873578,3413.8,3412.7,8.85]
[1732368840471,2.34873578,3413.8,3412.7,9.01665]
[1732368840630,1.96476067,3413.8,3412.7,9.01665]
[1732368840831,5.8595,3413.7,3412.7,9.01665]
[1732368841031,5.8595,3413.7,3412.8,1.068315]
[1732368841477,0.57580496,3413.5,3412.8,1.068315]
[1732368841973,5.8595,3413.4,3412.8,1.068315]
[1732368842127,3.0,3413.3,3412.8,1.068315]
[1732368842327,3.0,3413.3,3412.8,9.918315]
[1732368842531,0.57580496,3413.5,3412.8,9.918315]
[1732368842532,5.8595,3413.2,3412.8,9.918315]
[1732368842767,5.8595,3413.2,3412.8,1.068315]
[1732368843170,5.8595,3413.2,3412.7,9.01665]
[1732368843348,5.8595,3413.2,3412.7,8.85]
[1732368846469,5.8595,3413.2,3412.8,0.21793821]
[1732368846672,5.8595,3413.2,3412.9,1.87825117]
[1732368846967,5.8595,3413.2,3412.9,1.6603]
[1732368847284,5.8595,3413.2,3412.9,2.29689447]
[1732368847976,5.8595,3413.2,3413.0,9.41666993]
[1732368848179,5.8595,3413.2,3413.1,0.21794997]
[1732368848391,5.8595,3413.2,3413.1,2.22682345]
[1732368848695,0.59760489,3414.5,3413.1,2.22682345]
[1732368848844,3.53956067,3414.6,3413.2,9.09724145]
[1732368849050,4.17851674,3414.6,3413.3,1.29370411]
[1732368849360,4.77682332,3414.6,3413.4,0.21794997]
[1732368849687,4.77682332,3414.6,3413.3,1.07575414]
[1732368849993,0.76268233,3414.5,3413.4,1.37644771]
[1732368850145,0.76268233,3414.5,3413.4,1.15860541]
[1732368850393,4.13786725,3414.6,3413.4,1.15860541]
[1732368850591,4.13786725,3414.6,3413.5,1.90742794]
[1732368850828,4.13786725,3414.6,3413.5,1.6895908]
[1732368851032,4.13786725,3414.6,3413.5,1.6603]
[1732368851194,4.13786725,3414.6,3413.6,0.28481962]
[1732368851831,1.96476067,3414.2,3413.2,10.5103]
[1732368852208,1.96476067,3414.2,3413.3,0.21787774]
[1732368852518,1.96476067,3414.2,3413.3,1.07281777]
[1732368853827,1.96476067,3414.2,3413.4,8.85]
[1732368855257,4.13786725,3414.6,3413.4,8.85]
[1732368855716,1.96476067,3414.2,3413.4,8.85]
[1732368856229,1.5717,3414.1,3413.4,8.85]
[1732368856631,1.96476067,3413.8,3413.4,8.85]
[1732368856840,1.96476067,3413.8,3413.0,8.85]
[1732368857551,1.96476067,3413.8,3413.0,8.846089]
[1732368857862,1.5717,3413.6,3412.7,8.846089]
[1732368858063,0.57653284,3413.5,3412.7,8.846089]
[1732368859734,1.96476067,3413.4,3412.7,8.846089]
[1732368860552,1.96476067,3413.0,3412.7,8.846089]
[1732368860758,1.5717,3412.8,3412.7,8.846089]
[1732368860930,1.5717,3412.8,3411.9,8.846089]
[1732368861351,1.96476067,3412.6,3411.9,8.846089]
[1732368861763,1.5717,3412.8,3412.0,0.0293075]
[1732368862075,1.5717,3412.8,3412.1,1.04546965]
[1732368863140,1.5717,3413.2,3412.2,0.21783935]
[1732368863369,5.8605,3413.1,3412.3,0.21783935]
[1732368863567,5.8605,3413.1,3412.4,0.21783935]
[1732368863736,5.8605,3413.1,3412.5,0.21783935]
[1732368863936,5.8605,3413.1,3412.3,0.17282516]
[1732368864273,5.8605,3413.1,3412.4,1.5793]
[1732368864476,5.8605,3413.1,3412.4,1.85905948]
[1732368864677,5.8605,3413.1,3412.5,8.846089]
[1732368865169,1.6276,3413.0,3412.5,8.846089]
[1732368866138,5.8605,3412.9,3412.5,8.846089]
[1732368868949,5.8605,3412.9,3412.0,8.846089]
[1732368869172,5.8605,3412.9,3412.0,9.000909]
[1732368870197,5.8605,3412.9,3412.0,8.846089]
[1732368874603,0.5770777,3412.6,3412.0,8.846089]
[1732368874771,1.5898,3412.5,3412.0,8.846089]
[1732368875096,7.4503,3412.5,3411.7,8.846089]
[1732368875321,7.4503,3412.5,3411.7,9.8855179]
[1732368877618,5.8605,3412.5,3411.7,9.8855179]
[1732368877813,5.8605,3412.5,3411.8,0.02930662]
[1732368877982,5.8605,3412.5,3411.8,8.87539562]
[1732368878182,5.8605,3412.5,3411.8,8.846089]
[1732368878405,5.8605,3412.5,3411.4,0.38024502]
[1732368878406,5.8605,3412.5,3412.0,1.5047]
[1732368878619,5.8605,3412.5,3412.1,0.02930218]
[1732368878917,1.96476067,3413.4,3412.1,0.57930218]
[1732368879113,1.96476067,3413.4,3412.2,1.85306229]
[1732368879298,1.96476067,3413.4,3412.3,0.71635687]
[1732368879500,1.96476067,3413.4,3412.3,0.36800537]
[1732368879704,4.96476067,3413.4,3412.3,0.36800537]
[1732368880006,5.8602,3413.3,3412.3,0.33870645]
[1732368880581,7.69257425,3413.3,3412.2,1.5047]
[1732368881394,1.96476067,3413.0,3411.9,10.350789]
[1732368881605,1.5898,3412.8,3411.9,10.350789]
[1732368881813,1.5898,3412.8,3411.6,1.5047]
[1732368882028,1.5898,3412.8,3411.7,0.34927745]
[1732368882326,0.35545607,3412.7,3411.6,1.5047]
[1732368882498,6.21565607,3412.7,3411.6,1.5047]
[1732368882698,5.8602,3412.7,3411.7,0.3493801]
[1732368882907,5.8602,3412.7,3411.6,1.5047]
[1732368883224,5.8602,3412.7,3411.7,0.34937604]
[1732368883399,5.8602,3412.7,3411.8,0.34937604]
[1732368883598,5.8602,3412.7,3411.6,1.5047]
[1732368883905,5.8602,3412.7,3411.7,1.43116113]
[1732368884108,5.8602,3412.7,3411.8,0.34947948]
[1732368884313,5.8602,3412.7,3411.6,1.5047]
[1732368884514,5.8602,3412.7,3411.7,0.34964419]
[1732368884731,5.8602,3412.7,3411.6,1.5047]
[1732368885391,5.8602,3412.7,3411.7,0.34965962]
[1732368885605,0.745,3412.6,3411.8,0.34965962]
[1732368885811,0.745,3412.6,3411.6,1.5047]
[1732368886005,1.5582,3412.4,3411.7,0.349833]
[1732368886228,1.5582,3412.4,3411.4,8.846089]
[1732368886532,1.5582,3412.4,3411.5,1.83849623]
[1732368886533,5.8602,3412.3,3411.5,1.83849623]
[1732368886690,5.8602,3412.3,3411.6,0.3500077]
[1732368886893,5.8602,3412.3,3411.7,9.1960967]
[1732368887089,5.8602,3412.3,3411.7,8.846089]
[1732368887330,5.8602,3412.3,3411.8,0.35001612]
[1732368887871,5.8602,3412.3,3411.7,8.846089]
[1732368888028,6.79851607,3412.3,3411.7,8.846089]
[1732368888342,6.79851607,3412.3,3408.1,2.44397832]
[1732368888343,1.5582,3412.0,3411.4,8.846089]
[1732368888639,2.59034767,3412.0,3410.9,8.846089]
[1732368888790,5.8602,3411.9,3411.0,0.78767318]
[1732368888996,5.8602,3411.9,3411.1,0.35007697]
[1732368889194,5.8602,3411.9,3410.9,9.8970679]
[1732368889394,5.8602,3411.9,3411.0,0.35015378]
[1732368889734,5.8602,3411.9,3411.1,0.35015378]
[1732368889891,5.8602,3411.9,3411.2,0.35015378]
[1732368890234,5.8602,3411.9,3410.9,9.8970679]
[1732368890433,5.8602,3411.9,3411.0,0.35017843]
[1732368890731,6.90173083,3411.9,3411.1,0.35017843]
[1732368890936,6.90173083,3411.9,3411.2,0.35017843]
[1732368891093,6.90173083,3411.9,3410.9,9.8970679]
[1732368891540,1.5582,3411.6,3410.9,8.846089]
[1732368892045,5.8602,3411.5,3410.9,8.846089]
[1732368892936,5.8602,3411.5,3411.0,8.846089]
[1732368893144,5.8602,3411.5,3410.3,0.2915275]
[1732368893145,5.8602,3411.5,3411.2,1.6637]
[1732368893554,5.8602,3411.5,3411.3,0.43759412]
[1732368893842,5.8602,3411.5,3411.4,0.43759412]
[1732368894053,5.8602,3411.5,3411.4,1.86148518]
[1732368894254,5.8602,3411.5,3411.4,0.43759412]
[1732368896649,5.8602,3411.5,3411.2,1.6637]
[1732368896823,5.8602,3411.5,3411.3,0.43765466]
[1732368897020,5.8602,3411.5,3411.4,1.561576]
[1732368899049,5.8602,3411.5,3411.4,10.407665]
[1732368899247,5.8602,3411.5,3411.4,9.28374366]
[1732368899713,5.8602,3411.5,3411.4,10.87434366]
[1732368899914,5.8602,3411.5,3411.4,11.16611343]
[1732368900133,5.8602,3411.5,3411.4,10.87434366]
[1732368900359,5.8602,3411.5,3411.4,12.8035478]
[1732368900506,5.8602,3411.5,3411.4,12.07412337]
[1732368900713,5.8602,3411.5,3411.4,11.96173789]
[1732368902111,5.8602,3411.5,3411.4,9.28370352]
[1732368903059,5.8602,3411.5,3411.4,8.846089]
[1732368904149,5.8522,3411.5,3411.4,8.846089]
[1732368905149,5.8522,3411.5,3410.9,8.846089]
[1732368905350,5.8522,3411.5,3411.0,1.81039383]
[1732368905517,5.8522,3411.5,3411.1,0.43751705]
[1732368905715,5.8522,3411.5,3410.9,8.846089]
[1732368906014,5.8522,3411.5,3411.0,0.43751838]
[1732368906248,5.8522,3411.5,3410.9,8.846089]
[1732368906425,5.8522,3411.5,3411.0,0.43747994]
[1732368906655,5.8522,3411.5,3410.9,9.9189322]
[1732368906860,5.8522,3411.5,3411.0,0.43748625]
[1732368907067,5.8522,3411.5,3410.9,9.9189322]
[1732368907369,5.8522,3411.5,3411.0,0.4374872]
[1732368907685,5.8522,3411.5,3411.1,1.66144813]
[1732368907978,5.8522,3411.5,3411.2,8.846089]
[1732368908972,5.8522,3411.5,3410.9,8.846089]
[1732368909140,1.5064,3411.4,3411.0,8.846089]
[1732368909645,5.8522,3411.3,3411.0,8.846089]
[1732368910775,5.8522,3411.3,3410.6,0.18633578]
[1732368910776,5.8522,3411.3,3410.7,8.846089]
[1732368910984,5.8522,3411.3,3410.2,3.0]
[1732368910985,5.8522,3411.3,3410.8,8.846089]
[1732368911162,5.8522,3411.3,3410.2,8.846089]
[1732368911480,5.8522,3411.3,3410.3,9.28367323]
[1732368911780,5.8522,3411.3,3410.4,0.43758423]
[1732368911977,5.8522,3411.3,3410.3,8.846089]
[1732368912181,5.8522,3411.3,3410.3,9.91703368]
[1732368912561,1.5064,3411.2,3410.3,9.91703368]
[1732368913082,1.96476067,3411.5,3410.4,8.846089]
[1732368913083,1.5064,3411.0,3410.4,8.846089]
[1732368913283,5.8522,3411.1,3410.5,9.83779237]
[1732368914362,5.8522,3411.1,3410.5,8.846089]
[1732368914779,5.8522,3411.1,3410.1,8.846089]
[1732368914968,1.5972,3411.0,3410.1,8.846089]
[1732368915295,5.8522,3410.9,3410.1,8.846089]
[1732368915476,5.8522,3410.9,3410.2,8.846089]
[1732368915685,5.8522,3410.9,3410.1,1.05944434]
[1732368915686,5.8522,3410.9,3410.3,8.846089]
[1732368915869,5.8522,3410.9,3410.4,8.846089]
[1732368916186,5.8522,3410.9,3409.9,8.846089]
[1732368916395,1.5972,3410.8,3409.9,8.846089]
[1732368917274,1.5972,3410.8,3410.0,1.5395]
[1732368918292,5.8522,3410.7,3409.9,8.846089]
[1732368918490,5.8522,3410.7,3410.0,1.05622434]
[1732368919206,5.8522,3410.7,3410.1,8.875411]
[1732368919352,5.8522,3410.7,3410.1,8.84842411]
[1732368921369,5.8522,3410.7,3410.2,8.846089]
[1732368922308,5.8522,3410.7,3410.1,0.00233511]
[1732368922461,1.5972,3410.6,3410.1,0.00233511]
[1732368922669,6.59714,3410.5,3410.1,0.00233511]
[1732368922974,1.5972,3410.4,3410.1,0.00233511]
[1732368923498,5.8522,3410.5,3410.1,0.00233511]
[1732368923499,5.8522,3410.3,3410.1,0.00233511]
[1732368923702,1.5972,3410.2,3410.1,0.00233511]
[1732368924001,8.39081607,3410.2,3410.1,0.00233511]
[1732368924186,7.4494,3410.2,3410.1,0.00233511]
[1732368925722,12.96416067,3410.2,3410.1,0.00233511]
[1732368926998,12.41416067,3410.2,3410.1,0.00233511]
[1732368927503,10.00561451,3410.2,3410.1,0.00233511]
[1732368927706,10.41472212,3410.2,3410.1,0.00233511]
[1732368931615,13.96472212,3410.2,3410.1,0.00233511]